bitfinex/quotes_ETHUSD_20241023
["timestamp","ask_amount","ask_price","bid_price","bid_amount"]
[1729707273517,0.07248066,2483.2,2482.7,4.02776]
[1729707273518,0.01,2482.8,2482.7,4.02776]
[1729707273677,0.01,2482.8,2482.6,4.02802]
[1729707273872,1.6663,2482.7,2482.6,4.02802]
[1729707274099,1.72878066,2482.7,2482.6,4.02802]
[1729707274287,1.72878066,2482.7,2482.4,4.02826]
[1729707274617,0.01,2482.6,2482.5,4.02819]
[1729707274973,0.07248066,2482.6,2482.3,4.02849]
[1729707275512,0.07248066,2482.6,2482.4,4.02828]
[1729707275869,0.07248066,2482.6,2482.5,4.02819]
[1729707276417,0.01,2482.6,2482.5,4.02819]
[1729707277054,0.01,2482.6,2482.4,4.02834]
[1729707277374,0.06127441,2482.5,2482.4,4.02834]
[1729707278509,0.06127441,2482.5,2482.3,4.02848]
[1729707279019,0.06127441,2482.5,2482.4,4.02835]
[1729707279870,0.06127441,2482.5,2482.4,4.10891266]
[1729707280075,0.01,2482.6,2482.5,4.02819]
[1729707281742,1.6372,2483.4,2483.1,4.02719]
[1729707281907,0.01,2483.0,2482.9,8.05492]
[1729707282317,0.01,2483.0,2482.9,4.02745]
[1729707283213,0.07135485,2483.0,2482.9,4.02745]
[1729707284151,0.07135485,2483.0,2482.8,4.0277]
[1729707284308,0.07135485,2483.0,2482.8,8.05534]
[1729707284709,0.07135485,2483.0,2482.9,4.02754]
[1729707285210,0.06135485,2483.0,2482.9,4.02754]
[1729707285410,0.01,2483.0,2482.9,4.02754]
[1729707285720,0.07135485,2483.0,2482.9,4.02754]
[1729707285921,0.01,2483.0,2482.9,4.02754]
[1729707286243,0.55,2483.3,2482.9,4.02754]
[1729707286244,0.01,2483.3,2482.9,4.02754]
[1729707286446,0.01,2483.0,2482.9,4.02754]
[1729707286941,0.01,2483.3,2482.9,4.02754]
[1729707287245,0.01,2483.0,2482.9,4.02754]
[1729707287809,0.07135485,2483.0,2482.9,4.02754]
[1729707288604,0.06135485,2483.0,2482.9,4.91360758]
[1729707288857,0.01,2483.2,2483.1,4.02722]
[1729707289710,1.5716,2483.7,2483.1,0.08053764]
[1729707289910,0.01,2483.9,2483.7,4.02611]
[1729707290109,0.01,2483.9,2483.5,3.79939178]
[1729707290110,0.06177041,2483.6,2483.5,4.02644]
[1729707290423,0.01,2483.7,2483.6,4.02641]
[1729707291032,0.01,2483.9,2483.7,4.02624]
[1729707291244,0.06177041,2483.8,2483.7,4.02624]
[1729707291455,0.06177041,2483.8,2483.6,4.02639]
[1729707291761,0.01,2483.7,2483.6,4.02639]
[1729707292313,0.07177041,2483.7,2483.6,4.02639]
[1729707292513,0.01,2483.7,2483.6,4.02639]
[1729707293247,0.01,2483.7,2483.5,4.02644]
[1729707293452,0.06177041,2483.6,2483.4,4.02672]
[1729707293744,0.01,2483.7,2483.4,4.02672]
[1729707294157,0.06177041,2483.6,2483.4,4.02672]
[1729707294309,0.01,2483.4,2483.0,4.02722]
[1729707294513,0.01,2483.1,2482.8,4.02761]
[1729707294747,0.01,2483.1,2482.5,7.5173867]
[1729707294748,0.01,2483.1,2482.6,4.0279]
[1729707294951,0.01,2482.7,2482.4,4.02827]
[1729707295254,0.06177041,2482.6,2482.3,4.02846]
[1729707295436,0.06177041,2482.6,2482.3,0.08055839]
[1729707295750,0.01,2482.7,2482.2,8.05712]
[1729707295954,0.01,2482.7,2482.4,4.02834]
[1729707296137,0.06177041,2482.6,2482.4,4.02834]
[1729707296460,0.01,2482.7,2482.4,4.02834]
[1729707296617,0.06177041,2482.6,2482.5,4.02816]
[1729707296953,0.01,2482.7,2482.5,4.02816]
[1729707299059,0.01,2482.7,2482.3,4.0285]
[1729707299257,0.01,2482.7,2482.4,4.02833]
[1729707299847,0.01,2482.7,2482.3,4.02839]
[1729707300056,0.06136827,2482.6,2482.3,8.05681]
[1729707300253,0.01,2482.3,2482.1,3.0]
[1729707300415,1.5616,2482.2,2481.7,0.84222928]
[1729707300751,0.01,2481.5,2481.1,4.03039]
[1729707300956,0.01,2481.8,2481.2,0.97091857]
[1729707301262,0.01,2482.0,2481.5,4.02982]
[1729707301565,0.01,2482.3,2481.6,0.08057257]
[1729707301858,0.01,2482.3,2482.1,4.02874]
[1729707302353,0.01,2482.3,2482.1,8.0575]
[1729707302539,0.01,2482.7,2482.2,0.08056561]
[1729707302745,0.01,2482.7,2482.5,4.0281]
[1729707303339,0.01,2482.7,2482.6,4.02803]
[1729707303778,0.01,2482.7,2482.5,4.0281]
[1729707303939,0.01,2482.7,2482.6,4.02803]
[1729707304291,0.01,2483.2,2483.0,4.0273]
[1729707304437,0.01,2483.4,2483.2,4.02703]
[1729707304636,0.01,2483.4,2483.0,4.0273]
[1729707304637,0.01,2483.2,2483.1,4.0272]
[1729707304869,0.01,2483.4,2483.2,4.02701]
[1729707305042,0.01,2483.4,2483.1,8.0544]
[1729707305370,0.01,2483.4,2483.2,4.49082329]
[1729707305639,0.01,2483.4,2483.2,8.51787329]
[1729707306187,0.01,2483.4,2483.3,4.1074235]
[1729707306343,0.01,2483.4,2483.3,4.02689]
[1729707306740,0.01,2483.5,2483.2,4.49082329]
[1729707306976,0.01,2483.3,2483.2,4.49082329]
[1729707307181,0.01,2483.6,2483.1,4.02711]
[1729707307342,0.01,2483.3,2483.2,4.02706]
[1729707307842,0.01,2483.5,2483.2,4.02706]
[1729707308269,0.05933279,2483.4,2483.3,4.02689]
[1729707308482,0.01,2483.7,2483.4,4.02658]
[1729707309078,0.01,2483.7,2483.6,4.02641]
[1729707309958,0.01,2483.7,2483.5,4.02655]
[1729707310440,0.01,2483.7,2483.5,4.02656]
[1729707311676,0.01,2483.7,2483.5,4.02648]
[1729707312943,1.5533,2483.9,2483.1,4.02713]
[1729707312944,0.01,2483.3,2483.1,4.02713]
[1729707313271,0.01,2483.2,2483.0,4.02735]
[1729707313441,0.01,2483.2,2483.0,8.05462]
[1729707314059,0.01,2483.2,2483.1,4.02722]
[1729707314282,0.01,2483.6,2483.1,0.08053383]
[1729707314490,0.0594066,2483.5,2483.4,8.51752329]
[1729707315681,0.01,2483.8,2483.4,8.51752329]
[1729707315986,0.0594066,2483.7,2483.5,4.0265]
[1729707316287,0.01,2483.8,2483.5,4.0265]
[1729707316685,0.0594066,2483.7,2483.5,4.0265]
[1729707316854,0.01,2483.6,2483.5,4.0265]
[1729707317553,0.01,2483.6,2483.2,4.02692]
[1729707317753,0.0694066,2483.6,2483.2,4.02692]
[1729707318081,0.55,2483.8,2483.0,8.60287]
[1729707318082,0.01,2483.5,2483.1,4.02722]
[1729707318247,0.01,2483.5,2483.2,4.02703]
[1729707318469,0.0594066,2483.4,2483.2,4.02703]
[1729707318700,0.0594066,2483.4,2483.0,3.0]
[1729707318701,0.0594066,2483.4,2483.0,7.02728]
[1729707319005,0.0594066,2483.4,2483.2,4.02699]
[1729707319209,0.0594066,2483.4,2483.3,4.10742316]
[1729707319412,0.0594066,2483.4,2483.3,4.02689]
[1729707319616,0.01,2483.7,2483.2,2.28635274]
[1729707319789,0.01,2483.7,2483.5,4.02648]
[1729707319978,0.06015146,2483.6,2483.5,4.02648]
[1729707320314,0.06015146,2483.6,2483.5,8.05297]
[1729707320674,1.5633,2483.9,2483.6,4.02628]
[1729707320877,0.06015146,2483.8,2483.7,4.02617]
[1729707321179,0.06015146,2483.8,2483.4,4.02663]
[1729707321380,0.01,2483.7,2483.5,4.02657]
[1729707321906,0.06015146,2483.6,2483.5,4.02657]
[1729707322112,0.06015146,2483.6,2483.3,4.02682]
[1729707322335,1.5198,2483.5,2482.9,1.5363]
[1729707322504,0.01,2483.2,2482.7,4.02782]
[1729707322696,0.01,2483.2,2482.8,4.02762]
[1729707322921,0.01,2483.2,2482.9,4.10794289]
[1729707323097,0.0604332,2483.1,2482.9,4.10794289]
[1729707323316,0.0604332,2483.1,2483.0,4.02738]
[1729707323627,0.0604332,2483.1,2483.0,4.83288]
[1729707323836,0.0604332,2483.1,2483.0,7.83288]
[1729707324012,0.01,2483.5,2483.3,4.02676]
[1729707324392,0.06036613,2483.4,2483.3,4.02676]
[1729707324688,0.01,2483.7,2483.4,4.02658]
[1729707324895,0.01,2483.5,2483.2,4.02693]
[1729707325120,0.01,2483.5,2483.1,4.02714]
[1729707325333,0.06036613,2483.4,2483.1,4.02714]
[1729707325643,1.5748,2483.2,2482.8,4.02764]
[1729707325789,0.01,2483.0,2482.8,4.02764]
[1729707325987,0.01,2483.0,2482.8,4.02769]
[1729707326398,0.0603393,2482.9,2482.8,4.02764]
[1729707326913,0.01,2483.0,2482.8,4.02764]
[1729707327116,0.01,2483.0,2482.7,8.05563]
[1729707327319,0.0603393,2482.9,2482.8,4.02755]
[1729707327890,0.01,2483.0,2482.9,4.02754]
[1729707328121,0.01,2483.0,2482.8,4.02755]
[1729707328122,0.0703393,2483.0,2482.8,4.02767]
[1729707328324,0.0703393,2483.0,2482.7,4.02787]
[1729707328528,0.01,2482.7,2482.5,4.02811]
[1729707329230,0.0603393,2482.6,2482.5,4.02811]
[1729707329634,1.5848,2482.5,2482.2,4.02868]
[1729707330098,0.0703393,2482.4,2482.3,4.02842]
[1729707330341,0.0603393,2482.4,2482.3,4.02842]
[1729707330528,0.0703393,2482.4,2482.3,4.02842]
[1729707331497,0.0703393,2482.4,2482.2,8.05729]
[1729707331691,0.0703393,2482.4,2482.2,4.02861]
[1729707332017,0.01,2482.2,2481.5,0.84222928]
[1729707332234,0.01,2481.8,2481.7,4.02949]
[1729707332534,0.01,2481.8,2481.5,4.02977]
[1729707332744,0.01,2481.8,2481.3,4.03002]
[1729707332745,1.5578,2481.7,2481.3,4.03002]
[1729707332899,0.01,2481.8,2481.4,4.02998]
[1729707333233,1.5578,2482.0,2481.3,4.02999]
[1729707333234,0.01,2481.6,2481.3,4.02999]
[1729707333400,0.01,2481.6,2481.4,4.02989]
[1729707334037,0.01,2481.6,2481.4,4.11056206]
[1729707334204,0.01,2481.6,2481.4,8.05987]
[1729707334538,0.01,2481.6,2481.4,4.0299]
[1729707334698,0.01,2481.6,2481.5,4.02982]
[1729707336101,0.01,2481.6,2481.3,4.03011]
[1729707336301,0.01,2481.6,2481.4,4.02989]
[1729707336603,0.01,2481.6,2481.5,4.02982]
[1729707337313,1.5678,2481.8,2481.5,4.02982]
[1729707337501,0.01,2482.0,2481.6,0.08059136]
[1729707337705,1.5696,2482.1,2481.9,4.02906]
[1729707337945,1.5596,2482.1,2481.9,8.05815]
[1729707338118,1.5596,2482.1,2481.9,4.02906]
[1729707338119,0.01,2482.0,2481.9,4.02906]
[1729707339601,0.01,2482.0,2481.6,4.02952]
[1729707339602,0.56,2482.0,2481.6,4.02952]
[1729707339801,0.56,2482.0,2481.6,4.02963]
[1729707339802,0.01,2481.8,2481.6,4.02963]
[1729707340525,0.01,2481.8,2481.4,4.02998]
[1729707340724,0.01,2481.8,2481.5,4.0297]
[1729707340928,0.01,2481.8,2481.4,0.08059067]
[1729707340929,0.01,2481.8,2481.7,4.02949]
[1729707341146,1.578,2481.7,2480.7,2.15684861]
[1729707341439,0.01,2481.4,2481.3,4.03012]
[1729707341844,0.06830567,2481.4,2481.3,4.03012]
[1729707342015,1.578,2481.7,2481.4,4.02995]
[1729707342016,0.01,2481.5,2481.4,4.02995]
[1729707342450,0.01,2481.3,2481.1,4.03033]
[1729707342653,0.01,2481.0,2480.7,2.15684861]
[1729707342859,0.01,2481.0,2480.7,4.66147861]
[1729707343218,0.05821165,2480.9,2480.7,0.63044861]
[1729707343418,0.05821165,2480.9,2480.4,1.5988]
[1729707343419,0.01,2480.7,2480.4,4.03152]
[1729707343720,0.01,2480.7,2480.3,4.03166]
[1729707343721,1.60002357,2480.6,2480.3,4.03177]
[1729707344257,1.60002357,2480.6,2480.1,0.63069621]
[1729707344258,0.01,2480.2,2480.1,0.63069621]
[1729707344578,0.01,2480.5,2480.4,4.0316]
[1729707345034,0.01,2480.5,2480.3,8.06344]
[1729707345230,0.01,2480.5,2480.1,4.032]
[1729707345437,0.01,2480.2,2480.1,4.032]
[1729707345632,0.01,2480.2,2479.9,4.03231]
[1729707345821,0.01,2480.0,2479.9,8.06465]
[1729707346221,0.01,2480.0,2479.9,4.03231]
[1729707346457,0.01,2480.0,2479.9,4.03242]
[1729707346957,0.01,2480.0,2479.8,4.03255]
[1729707347158,0.01,2480.0,2479.9,4.03242]
[1729707347543,0.01,2480.3,2480.2,4.03193]
[1729707347931,0.01,2480.3,2480.1,4.03203]
[1729707348258,1.542,2480.5,2480.1,4.03203]
[1729707348259,0.01,2480.2,2480.1,4.03208]
[1729707348624,0.01,2480.2,2480.0,4.03217]
[1729707348825,0.01,2480.2,2479.9,4.03234]
[1729707349336,0.01,2480.2,2479.9,8.06463]
[1729707349534,0.01,2480.2,2480.0,4.03215]
[1729707349721,0.01,2480.2,2480.1,4.03209]
[1729707349923,0.01,2480.2,2479.9,4.0323]
[1729707349924,0.01,2479.7,2479.4,5.64008]
[1729707350133,0.01,2479.7,2479.6,4.0329]
[1729707350350,0.01,2479.7,2479.5,4.03298]
[1729707350753,0.01,2479.7,2479.3,4.03328]
[1729707350955,0.01,2479.7,2479.5,4.03299]
[1729707351157,1.552,2479.9,2479.5,4.03299]
[1729707351337,0.01,2479.9,2479.8,4.03258]
[1729707353864,0.01,2480.1,2479.7,4.03271]
[1729707354160,0.01,2480.3,2480.2,4.03193]
[1729707354465,1.5839,2480.5,2479.7,2.014071]
[1729707354466,0.01,2480.1,2479.8,4.03247]
[1729707354670,0.01,2479.9,2479.8,4.03247]
[1729707355167,0.01,2479.9,2479.7,4.03259]
[1729707355341,0.01,2479.9,2479.8,4.03258]
[1729707356086,0.01,2479.9,2479.7,4.03259]
[1729707356394,0.01,2479.9,2479.6,4.03289]
[1729707356395,0.01,2479.7,2479.6,4.03289]
[1729707356699,0.01,2479.3,2479.1,4.03358]
[1729707357051,0.01,2479.1,2479.0,4.03381]
[1729707357554,2.0875,2479.0,2478.9,0.63093347]
[1729707357756,0.01,2478.9,2478.8,4.03411]
[1729707358051,0.01,2478.9,2478.6,0.84222928]
[1729707358257,0.01,2478.7,2478.6,4.87670928]
[1729707359591,0.01,2479.1,2479.0,4.03388]
[1729707359825,0.01,2479.1,2478.9,4.03401]
[1729707359963,0.01,2479.1,2479.0,4.03388]
[1729707360164,0.01,2479.1,2478.9,4.03397]
[1729707360365,0.01,2478.7,2478.6,4.87660928]
[1729707360696,0.01,2478.9,2478.6,4.87675928]
[1729707360895,0.01,2478.7,2478.6,4.87675928]
[1729707361198,0.01,2478.7,2478.6,4.03453]
[1729707361600,0.01,2478.9,2478.8,4.03421]
[1729707361897,0.01,2478.9,2478.8,3.98421]
[1729707362265,0.01,2479.2,2479.1,4.03372]
[1729707362665,0.01,2479.0,2478.9,4.03393]
[1729707362866,1.5475,2479.3,2479.2,4.03355]
[1729707363066,0.01,2479.3,2479.2,4.03355]
[1729707363600,0.06665917,2479.3,2479.1,4.03369]
[1729707363806,0.01,2478.9,2478.8,4.03413]
[1729707363986,0.01,2478.9,2478.7,4.03436]
[1729707364187,0.01,2478.9,2478.5,8.70035018]
[1729707364473,0.01,2478.4,2478.3,0.63121764]
[1729707364788,0.61439257,2478.4,2477.9,4.03562]
[1729707364971,0.01,2478.0,2477.9,4.03562]
[1729707365175,0.13,2478.0,2477.7,0.63132818]
[1729707365380,0.13,2478.0,2475.4,4.87492835]
[1729707365381,0.55,2477.1,2475.4,4.87492835]
[1729707365585,8.52338,2475.5,2475.4,4.87492835]
[1729707365801,9.54626228,2475.5,2475.4,4.87492835]
[1729707366004,9.54626228,2475.5,2475.1,0.1207432]
[1729707366005,2.56069783,2475.5,2475.1,0.1207432]
[1729707366325,4.60007,2475.2,2475.1,0.1207432]
[1729707366615,4.65065592,2475.2,2475.1,0.1207432]
[1729707368316,0.01,2474.1,2473.2,1.6661]
[1729707368515,0.01,2474.1,2473.2,5.70931]
[1729707368713,0.01,2474.6,2473.6,0.01]
[1729707369018,0.01,2474.8,2473.9,4.0422]
[1729707369173,0.04867989,2474.5,2473.8,1.6661]
[1729707369374,0.01,2475.0,2473.9,0.01]
[1729707369587,0.55,2474.9,2473.8,1.6661]
[1729707369789,0.01,2474.7,2473.9,0.65168208]
[1729707369970,0.59867989,2474.9,2473.9,0.65168208]
[1729707369971,0.05867989,2474.9,2474.1,3.0]
[1729707370181,0.01,2474.9,2474.1,3.0]
[1729707370421,0.01,2474.9,2473.9,0.570859]
[1729707370422,0.04867989,2474.8,2474.7,1.5054]
[1729707370587,0.04867989,2474.8,2474.7,4.58620587]
[1729707370789,0.01,2475.3,2474.7,5.47993823]
[1729707370978,0.01,2474.9,2474.3,3.0]
[1729707371311,0.01,2474.9,2474.2,1.5054]
[1729707371683,0.01,2474.7,2474.2,1.5054]
[1729707371888,0.04867989,2474.8,2474.2,1.5054]
[1729707372209,0.04867989,2474.7,2474.2,1.5054]
[1729707372870,0.04867989,2474.7,2474.3,0.08081663]
[1729707373077,0.04867989,2474.7,2474.3,0.53943829]
[1729707373283,0.01,2474.8,2474.2,1.5054]
[1729707373485,0.01,2474.8,2473.9,4.612909]
[1729707373486,0.04867989,2474.6,2473.9,3.570859]
[1729707373684,0.01,2474.8,2473.9,3.570859]
[1729707373901,0.04867989,2474.5,2473.9,3.570859]
[1729707374127,0.01,2474.6,2473.6,3.0]
[1729707374277,0.01,2474.4,2473.4,6.66667645]
[1729707374477,0.01,2474.4,2473.5,0.08083636]
[1729707374705,0.01,2474.4,2473.7,4.04251]
[1729707374892,0.04867989,2474.3,2473.8,0.404251]
[1729707375076,4.0501,2475.2,2473.9,0.08082718]
[1729707375077,0.01,2474.7,2473.9,0.08082718]
[1729707375297,0.01,2474.7,2474.0,4.04193]
[1729707375501,0.01,2474.5,2474.0,4.04193]
[1729707375701,0.01,2474.5,2474.1,3.0]
[1729707376106,0.04867989,2474.4,2473.4,7.34329845]
[1729707376290,0.55,2474.3,2473.4,11.5011294]
[1729707376618,0.56,2474.1,2473.0,1.5]
[1729707376780,0.01,2473.6,2473.0,1.5]
[1729707377193,0.01,2473.6,2472.8,4.0439]
[1729707377720,0.04715872,2473.5,2472.9,4.12469793]
[1729707377882,0.04715872,2473.5,2473.1,4.04348]
[1729707378078,0.01,2474.2,2473.1,4.04348]
[1729707378079,0.01,2474.1,2473.2,0.75748438]
[1729707378381,0.01,2473.9,2473.2,4.04324]
[1729707378922,0.01,2473.9,2473.3,3.0]
[1729707379230,0.01,2473.9,2472.9,4.04379]
[1729707379231,0.01,2473.5,2472.9,4.04379]
[1729707379426,0.55,2473.3,2472.9,4.04379]
[1729707379925,0.01,2473.5,2473.2,4.04331]
[1729707380082,0.01,2473.5,2473.0,4.04357]
[1729707380779,0.01,2473.4,2473.1,4.04341]
[1729707380982,0.01,2473.4,2472.7,0.1207432]
[1729707380983,0.01,2473.4,2472.9,4.04376]
[1729707381282,0.01,2473.2,2473.0,4.04366]
[1729707381490,0.01,2473.4,2472.7,0.1207432]
[1729707381725,0.01,2473.4,2473.1,4.0435]
[1729707381929,4.05174,2474.2,2473.4,3.0]
[1729707381930,0.01,2473.9,2473.4,3.0]
[1729707382220,0.01,2473.9,2473.7,4.04241]
[1729707382389,0.01,2474.1,2473.7,4.04239]
[1729707382594,0.01,2474.1,2473.9,4.04217]
[1729707382993,1.5581,2474.2,2473.5,0.08084369]
[1729707383181,0.01,2474.3,2474.0,4.04197]
[1729707383490,1.5493,2474.6,2473.9,4.0422]
[1729707383491,0.01,2474.1,2473.9,4.0422]
[1729707383693,0.01,2474.1,2473.5,1.22729701]
[1729707383694,0.01,2474.4,2474.0,4.04191]
[1729707383992,0.01,2474.4,2474.2,4.04169]
[1729707384196,9.18886645,2475.5,2473.7,4.12332614]
[1729707384197,0.01,2474.7,2474.6,4.04105]
[1729707384610,0.01,2475.3,2475.2,4.04007]
[1729707384932,0.01,2475.1,2475.0,4.0403]
[1729707385086,0.01,2475.5,2475.4,4.03975]
[1729707385284,0.01,2475.5,2475.0,4.0404]
[1729707385496,1.5493,2475.8,2475.0,4.0404]
[1729707385497,0.01,2475.3,2475.0,4.0404]
[1729707385825,0.01211714,2475.4,2475.3,4.03991]
[1729707386618,0.01211714,2475.4,2475.2,4.04004]
[1729707386928,0.01211714,2475.4,2475.2,4.03998]
[1729707387297,0.01211714,2475.4,2475.1,4.04022]
[1729707387533,0.01211714,2475.4,2475.3,4.03991]
[1729707387887,0.01211714,2475.4,2475.0,7.04036]
[1729707387888,0.02211714,2475.4,2475.0,4.04031]
[1729707388117,0.02211714,2475.4,2474.8,4.04063]
[1729707388118,0.01,2475.1,2474.8,4.04063]
[1729707388293,0.01,2474.9,2474.8,4.04063]
[1729707388492,1.592,2475.1,2474.8,4.04063]
[1729707388493,1.602,2475.1,2474.8,4.04063]
[1729707388726,0.01,2474.9,2474.8,4.04063]
[1729707388897,1.592,2475.1,2474.6,4.04096]
[1729707388898,0.01,2474.8,2474.6,8.08189]
[1729707389297,0.01,2474.8,2474.7,4.04089]
[1729707389731,0.01,2474.8,2474.6,4.04093]
[1729707390230,0.01,2474.8,2474.1,5.63301]
[1729707390231,0.01,2474.6,2474.1,4.04185]
[1729707390525,0.01,2474.4,2474.3,4.04154]
[1729707391394,0.01,2474.7,2474.5,4.04108]
[1729707391594,0.01,2474.7,2474.6,4.04105]
[1729707391826,0.01,2474.9,2474.7,4.04073]
[1729707392001,0.01,2474.7,2474.1,4.04176]
[1729707392203,0.01,2474.4,2473.9,4.04215]
[1729707392403,0.01,2474.4,2473.7,4.04242]
[1729707392404,0.01,2474.2,2473.7,4.04242]
[1729707392621,0.01,2474.2,2473.8,4.04224]
[1729707392993,0.04613823,2474.1,2473.8,4.04224]
[1729707393532,0.04613823,2474.1,2473.0,4.04365]
[1729707393533,0.01,2473.7,2473.0,4.04365]
[1729707393764,0.01,2473.7,2473.4,4.04293]
[1729707393922,0.04592846,2473.6,2473.4,8.08585]
[1729707394120,0.01,2473.7,2473.4,4.04292]
[1729707394340,0.01,2473.7,2472.7,4.1647532]
[1729707394645,0.01,2473.9,2473.5,4.04276]
[1729707394810,0.01,2473.9,2473.7,4.04252]
[1729707395016,0.01,2473.7,2473.3,4.04305]
[1729707395254,0.01,2473.7,2473.4,7.04291]
[1729707395555,0.01,2473.7,2473.5,4.04284]
[1729707395556,0.04573218,2473.6,2473.5,4.04284]
[1729707395709,0.04573218,2473.6,2473.4,3.0]
[1729707395710,0.04573218,2473.6,2473.4,7.04301]
[1729707396424,0.04573218,2473.6,2472.7,0.1207432]
[1729707396629,0.01,2472.9,2472.7,0.1207432]
[1729707397014,2.1029374,2472.8,2472.7,0.1207432]
[1729707397315,2.1129374,2472.8,2472.7,0.1207432]
[1729707397515,2.1029374,2472.8,2472.7,0.1207432]
[1729707398554,6.1569274,2472.8,2472.7,0.1207432]
[1729707398956,9.1569274,2472.8,2472.7,0.1207432]
[1729707399527,2.1029374,2472.8,2472.7,0.1207432]
[1729707399949,1.5529374,2472.8,2472.7,0.1207432]
[1729707400160,0.0456374,2472.8,2472.7,0.1207432]
[1729707400332,0.0456374,2472.8,2472.7,4.1649032]
[1729707400527,0.0456374,2472.8,2472.7,0.1207432]
[1729707400728,1.6425374,2472.8,2472.7,0.1207432]
[1729707402454,0.0456374,2472.8,2472.7,0.1207432]
[1729707402661,0.0456374,2472.8,2472.7,4.1649032]
[1729707402859,0.01,2473.3,2473.1,4.04349]
[1729707403021,0.01,2473.3,2473.1,4.04341]
[1729707403866,0.01,2473.3,2473.1,4.0434]
[1729707404068,0.01,2473.3,2473.0,4.04359]
[1729707404353,0.01,2473.3,2472.7,0.1207432]
[1729707404654,0.01,2473.3,2473.1,4.0435]
[1729707404894,6.21089,2472.8,2472.7,0.1207432]
[1729707405014,5.65089,2472.8,2472.7,0.1207432]
[1729707405220,2.1569,2472.8,2472.7,0.1207432]
[1729707405815,1.6069,2472.8,2472.7,0.1207432]
[1729707406360,0.01,2472.8,2472.7,0.1207432]
[1729707407534,4.05294,2473.5,2472.7,0.1207432]
[1729707407535,0.01,2473.0,2472.7,0.1207432]
[1729707407835,0.01,2473.0,2472.7,4.1649032]
[1729707408254,0.01,2473.0,2472.7,0.1207432]
[1729707408424,0.04011319,2472.9,2472.7,0.1207432]
[1729707408831,0.01,2473.0,2472.7,0.1207432]
[1729707409132,0.01,2473.4,2472.9,4.04379]
[1729707409451,0.01,2473.4,2473.0,0.0808708]
[1729707409659,0.01,2473.4,2472.7,0.1207432]
[1729707409964,0.01,2473.7,2473.3,4.04317]
[1729707410138,0.01,2473.7,2473.4,4.04289]
[1729707410346,0.01,2473.7,2473.5,4.04285]
[1729707410652,0.01,2473.9,2473.6,4.04252]
[1729707410869,0.01,2473.9,2473.7,4.0424]
[1729707411170,0.04048617,2473.8,2473.7,4.0424]
[1729707411355,0.01,2474.1,2473.8,4.04236]
[1729707411532,0.04048617,2474.0,2473.9,4.04211]
[1729707411732,0.01,2474.1,2473.9,4.04211]
[1729707411937,4.04236,2473.8,2473.6,0.82130508]
[1729707412151,4.04236,2473.8,2473.1,4.04347]
[1729707412152,0.01,2473.2,2473.1,4.04347]
[1729707412619,0.01,2473.9,2473.7,4.04249]
[1729707412892,0.01,2474.0,2473.7,4.04249]
[1729707413118,0.04048617,2473.8,2473.7,4.04249]
[1729707413326,0.04048617,2473.8,2473.7,5.08502415]
[1729707413523,4.04077,2474.8,2473.5,2.62329652]
[1729707413524,0.01,2474.2,2473.9,4.04214]
[1729707413825,0.04048617,2474.1,2473.9,1.5826]
[1729707414127,0.05048617,2474.1,2473.8,8.08449]
[1729707414331,4.04122,2474.5,2473.8,8.08449]
[1729707414332,4.04122,2474.5,2473.8,4.04221]
[1729707414641,0.04145561,2474.0,2473.8,8.08449]
[1729707414784,0.01,2474.1,2473.9,4.0422]
[1729707414986,0.01,2474.6,2474.0,4.04203]
[1729707415188,0.01,2474.6,2474.2,4.04159]
[1729707415396,0.01,2474.6,2474.0,4.04191]
[1729707415625,0.01,2474.6,2474.1,4.04179]
[1729707415787,0.01,2474.6,2474.2,4.0417]
[1729707415984,0.01,2474.6,2474.0,4.04192]
[1729707416194,0.01,2474.6,2474.2,4.04166]
[1729707416396,0.01,2474.6,2474.2,8.08329]
[1729707416639,0.01,2474.6,2474.2,4.04159]
[1729707416841,0.01,2474.6,2474.3,4.0414]
[1729707417333,0.01,2474.6,2474.1,4.04175]
[1729707417537,0.01,2474.6,2474.2,4.04162]
[1729707418030,1.5338,2474.8,2474.2,4.04162]
[1729707418229,0.01,2474.5,2474.2,4.04162]
[1729707419206,0.01,2474.5,2474.3,4.04139]
[1729707419421,0.01,2474.5,2474.2,4.04159]
[1729707419817,0.01,2474.5,2474.2,8.0832]
[1729707419996,0.01,2474.5,2474.3,4.04153]
[1729707420439,0.01,2474.7,2474.0,4.04195]
[1729707420610,0.01,2474.4,2474.3,4.04154]
[1729707421107,0.05233655,2474.4,2474.3,4.04154]
[1729707421321,0.05233655,2474.4,2474.2,4.04171]
[1729707421322,0.01,2474.4,2474.0,4.04187]
[1729707421632,1.5338,2474.8,2474.3,4.04154]
[1729707421994,0.01,2474.4,2474.3,4.04154]
[1729707422331,0.01,2474.4,2474.2,4.0416]
[1729707422520,0.05260085,2474.4,2474.3,4.04154]
[1729707422699,0.01,2474.4,2474.2,4.0416]
[1729707422900,0.04257376,2474.4,2474.2,8.08321]
[1729707423132,0.01,2474.4,2474.1,4.04179]
[1729707423339,0.04257376,2474.3,2474.0,4.04192]
[1729707423647,0.01,2474.0,2473.2,5.65749]
[1729707423857,0.01,2473.5,2473.1,4.0435]